[Event "Titled Tuesday Blitz August 17 2021"]
[White "Gupta, Abhijeet"]
[Black "Perrine, Dalton"]
[WhiteFideId "5010608"]
[BlackFideId "2048434"]
[WhiteElo "2549"]
[BlackElo "2461"]
[Result "1-0"]
[Round "01"]
[TimeControl "180+1"]
[Date "2021.08.17"]
[WhiteClock "0:01:57"]
[BlackClock "0:00:25"]

1. Nf3 {[%clk 0:03:00]}  d5 {[%clk 0:02:55]} 2. c4 {[%clk 0:03:00]}  d4 {[%clk 0:02:53]} 3. g3 {[%clk 0:02:58]}  c5 {[%clk 0:02:49]} 4. Bg2 {[%clk 0:02:57]}  Nc6 {[%clk 0:02:50]} 5. d3 {[%clk 0:02:57]}  e5 {[%clk 0:02:48]} 6. e3 {[%clk 0:02:57]}  Bd6 {[%clk 0:02:39]} 7. exd4 {[%clk 0:02:57]}  exd4 {[%clk 0:02:39]} 8. O-O {[%clk 0:02:57]}  Nge7 {[%clk 0:02:34]} 9. Nbd2 {[%clk 0:02:55]}  b6 {[%clk 0:02:20]} 10. b4 {[%clk 0:02:43]}  Bf5 {[%clk 0:01:38]} 11. b5 {[%clk 0:02:22]}  Na5 {[%clk 0:01:16]} 12. Nb3 {[%clk 0:02:21]}  Nxb3 {[%clk 0:00:53]} 13. axb3 {[%clk 0:02:21]}  O-O {[%clk 0:00:53]} 14. Nh4 {[%clk 0:02:20]}  Be6 {[%clk 0:00:54]} 15. Re1 {[%clk 0:02:11]}  Qd7 {[%clk 0:00:53]} 16. Bxa8 {[%clk 0:02:07]}  Rxa8 {[%clk 0:00:54]} 17. Qf3 {[%clk 0:02:07]}  Re8 {[%clk 0:00:44]} 18. Bf4 {[%clk 0:02:05]}  Bg4 {[%clk 0:00:37]} 19. Qe4 {[%clk 0:02:04]}  f5 {[%clk 0:00:35]} 20. Qe6+ {[%clk 0:02:02]}  Qxe6 {[%clk 0:00:35]} 21. Rxe6 {[%clk 0:02:03]}  Bxf4 {[%clk 0:00:36]} 22. gxf4 {[%clk 0:02:02]}  Kf7 {[%clk 0:00:37]} 23. Re5 {[%clk 0:02:01]}  Ra8 {[%clk 0:00:33]} 24. f3 {[%clk 0:02:01]}  Bh5 {[%clk 0:00:32]} 25. Nxf5 {[%clk 0:02:01]}  Nxf5 {[%clk 0:00:29]} 26. Rxf5+ {[%clk 0:02:02]}  Kg6 {[%clk 0:00:29]} 27. Rg5+ {[%clk 0:02:00]}  Kh6 {[%clk 0:00:29]} 28. Re5 {[%clk 0:01:59]}  Bxf3 {[%clk 0:00:28]} 29. Kf2 {[%clk 0:02:00]}  Bh5 {[%clk 0:00:25]} 30. Re6+ {[%clk 0:01:57]}  g6 {[%clk 0:00:25]} 31. Rxb6 {[%clk 0:01:57]} 1-0


[Site "https://www.chess.com"]

[Event "Titled Tuesday Blitz August 17 2021"]
[White "Hamley, Ryan"]
[Black "Abdurakhmonov, Mukhammadali"]
[WhiteFideId "30959497"]
[BlackFideId "14207346"]
[WhiteElo "2409"]
[BlackElo "2266"]
[Result "0-1"]
[Round "01"]
[TimeControl "180+1"]
[Date "2021.08.17"]
[WhiteClock "0:00:02"]
[BlackClock "0:00:16"]

1. e4 {[%clk 0:02:58]}  c5 {[%clk 0:02:59]} 2. Nf3 {[%clk 0:02:58]}  g6 {[%clk 0:02:59]} 3. d4 {[%clk 0:02:58]}  cxd4 {[%clk 0:03:00]} 4. Nxd4 {[%clk 0:02:58]}  Bg7 {[%clk 0:03:00]} 5. c4 {[%clk 0:02:58]}  Nc6 {[%clk 0:02:58]} 6. Nc2 {[%clk 0:02:37]}  d6 {[%clk 0:02:57]} 7. Nc3 {[%clk 0:02:37]}  Bxc3+ {[%clk 0:02:53]} 8. bxc3 {[%clk 0:02:37]}  Nf6 {[%clk 0:02:54]} 9. f3 {[%clk 0:02:33]}  Be6 {[%clk 0:02:50]} 10. Bh6 {[%clk 0:02:31]}  Rc8 {[%clk 0:02:48]} 11. Ne3 {[%clk 0:02:29]}  Ne5 {[%clk 0:02:44]} 12. Qa4+ {[%clk 0:02:18]}  Nc6 {[%clk 0:02:20]} 13. Nd5 {[%clk 0:02:11]}  Nd7 {[%clk 0:02:17]} 14. Rb1 {[%clk 0:02:06]}  Nc5 {[%clk 0:02:12]} 15. Qc2 {[%clk 0:01:59]}  f6 {[%clk 0:02:08]} 16. h4 {[%clk 0:01:55]}  Kf7 {[%clk 0:02:03]} 17. Be2 {[%clk 0:01:55]}  Qd7 {[%clk 0:00:54]} 18. O-O {[%clk 0:01:46]}  b6 {[%clk 0:00:54]} 19. f4 {[%clk 0:01:38]}  Bg4 {[%clk 0:00:53]} 20. f5 {[%clk 0:01:27]}  Ne5 {[%clk 0:00:47]} 21. Bf4 {[%clk 0:01:15]}  Bxe2 {[%clk 0:00:45]} 22. Qxe2 {[%clk 0:01:14]}  Ncd3 {[%clk 0:00:46]} 23. Bxe5 {[%clk 0:01:09]}  Nxe5 {[%clk 0:00:47]} 24. Ne3 {[%clk 0:00:54]}  Qc6 {[%clk 0:00:42]} 25. Rf4 {[%clk 0:00:46]}  Nxc4 {[%clk 0:00:41]} 26. fxg6+ {[%clk 0:00:46]}  hxg6 {[%clk 0:00:40]} 27. Nd5 {[%clk 0:00:46]}  Qc5+ {[%clk 0:00:37]} 28. Kh2 {[%clk 0:00:42]}  Ne5 {[%clk 0:00:34]} 29. Rbf1 {[%clk 0:00:41]}  Qc4 {[%clk 0:00:35]} 30. Qf2 {[%clk 0:00:33]}  Kg7 {[%clk 0:00:28]} 31. Kg1 {[%clk 0:00:22]}  Rce8 {[%clk 0:00:25]} 32. Rxf6 {[%clk 0:00:16]}  Qxe4 {[%clk 0:00:18]} 33. Rf7+ {[%clk 0:00:10]}  Nxf7 {[%clk 0:00:18]} 34. Qxf7+ {[%clk 0:00:11]}  Kh6 {[%clk 0:00:18]} 35. Rf4 {[%clk 0:00:02]}  Qe1+ {[%clk 0:00:17]} 36. Kh2 {[%clk 0:00:02]}  Ref8 {[%clk 0:00:16]} 0-1


[Site "https://www.chess.com"]

[Event "Titled Tuesday Blitz August 17 2021"]
[White "Hansch, Karsten"]
[Black "Kezin, Roman"]
[WhiteFideId "24692239"]
[BlackFideId "24124621"]
[WhiteElo "2358"]
[BlackElo "2570"]
[Result "0-1"]
[Round "01"]
[TimeControl "180+1"]
[Date "2021.08.17"]
[WhiteClock "0:00:04"]
[BlackClock "0:00:34"]

1. e4 {[%clk 0:02:59]}  c5 {[%clk 0:02:59]} 2. Nf3 {[%clk 0:02:57]}  e6 {[%clk 0:03:00]} 3. g3 {[%clk 0:02:56]}  Nc6 {[%clk 0:02:59]} 4. Bg2 {[%clk 0:02:56]}  Nf6 {[%clk 0:02:59]} 5. Qe2 {[%clk 0:02:55]}  e5 {[%clk 0:02:59]} 6. c3 {[%clk 0:02:54]}  Be7 {[%clk 0:02:59]} 7. O-O {[%clk 0:02:54]}  O-O {[%clk 0:02:59]} 8. Rd1 {[%clk 0:02:54]}  Re8 {[%clk 0:02:59]} 9. d4 {[%clk 0:02:54]}  exd4 {[%clk 0:02:51]} 10. cxd4 {[%clk 0:02:55]}  d5 {[%clk 0:02:46]} 11. dxc5 {[%clk 0:02:23]}  Nxe4 {[%clk 0:02:44]} 12. Be3 {[%clk 0:01:45]}  Bxc5 {[%clk 0:02:34]} 13. Bxc5 {[%clk 0:01:44]}  Nxc5 {[%clk 0:02:35]} 14. Qd2 {[%clk 0:01:44]}  Bg4 {[%clk 0:02:29]} 15. Nc3 {[%clk 0:01:41]}  d4 {[%clk 0:02:29]} 16. Nb5 {[%clk 0:01:32]}  Qb6 {[%clk 0:02:20]} 17. Nbxd4 {[%clk 0:01:30]}  Rad8 {[%clk 0:02:18]} 18. Qc2 {[%clk 0:01:10]}  Nb4 {[%clk 0:02:12]} 19. Qc4 {[%clk 0:01:04]}  Ncd3 {[%clk 0:02:09]} 20. a3 {[%clk 0:00:49]}  Bxf3 {[%clk 0:01:53]} 21. Nxf3 {[%clk 0:00:16]}  Qxf2+ {[%clk 0:01:52]} 22. Kh1 {[%clk 0:00:16]}  Re2 {[%clk 0:01:42]} 23. Nh4 {[%clk 0:00:11]}  Rde8 {[%clk 0:01:41]} 24. Rf1 {[%clk 0:00:10]}  Rc2 {[%clk 0:00:59]} 25. Qb3 {[%clk 0:00:06]}  Rxb2 {[%clk 0:01:00]} 26. Qc4 {[%clk 0:00:04]}  Nc2 {[%clk 0:00:36]} 27. Rxf2 {[%clk 0:00:03]}  Nxf2+ {[%clk 0:00:37]} 28. Kg1 {[%clk 0:00:04]}  Nxa1 {[%clk 0:00:38]} 29. Qc1 {[%clk 0:00:03]}  Nd3 {[%clk 0:00:35]} 30. Qxa1 {[%clk 0:00:03]}  Re1+ {[%clk 0:00:36]} 31. Qxe1 {[%clk 0:00:03]}  Nxe1 {[%clk 0:00:37]} 32. Nf5 {[%clk 0:00:04]}  Nxg2 {[%clk 0:00:34]} 0-1


[Site "https://www.chess.com"]

[Event "Titled Tuesday Blitz August 17 2021"]
[White "Ivanisevic, Ivan"]
[Black "Guliev, Logman"]
[WhiteFideId "912417"]
[BlackFideId "13400061"]
[WhiteElo "2499"]
[BlackElo "2128"]
[Result "1-0"]
[Round "01"]
[TimeControl "180+1"]
[Date "2021.08.17"]
[WhiteClock "0:01:25"]
[BlackClock "0:00:28"]

1. d4 {[%clk 0:03:00]}  Nf6 {[%clk 0:02:51]} 2. c4 {[%clk 0:03:00]}  e6 {[%clk 0:02:52]} 3. Nc3 {[%clk 0:03:01]}  Bb4 {[%clk 0:02:52]} 4. e3 {[%clk 0:03:00]}  O-O {[%clk 0:02:52]} 5. Ne2 {[%clk 0:02:59]}  d5 {[%clk 0:02:53]} 6. a3 {[%clk 0:02:58]}  Be7 {[%clk 0:02:50]} 7. cxd5 {[%clk 0:02:57]}  exd5 {[%clk 0:02:50]} 8. h3 {[%clk 0:02:57]}  Nbd7 {[%clk 0:02:44]} 9. g4 {[%clk 0:02:57]}  c6 {[%clk 0:02:39]} 10. Bg2 {[%clk 0:02:56]}  Ne8 {[%clk 0:02:31]} 11. O-O {[%clk 0:02:51]}  Nd6 {[%clk 0:02:31]} 12. Nf4 {[%clk 0:02:42]}  Nf6 {[%clk 0:02:28]} 13. f3 {[%clk 0:02:40]}  Re8 {[%clk 0:02:25]} 14. e4 {[%clk 0:02:36]}  dxe4 {[%clk 0:02:20]} 15. fxe4 {[%clk 0:02:37]}  Nc4 {[%clk 0:02:11]} 16. e5 {[%clk 0:02:32]}  Nd5 {[%clk 0:02:00]} 17. Ncxd5 {[%clk 0:02:27]}  cxd5 {[%clk 0:02:00]} 18. Bxd5 {[%clk 0:02:21]}  Nb6 {[%clk 0:01:49]} 19. Bb3 {[%clk 0:02:20]}  Bg5 {[%clk 0:01:40]} 20. Bxf7+ {[%clk 0:01:56]}  Kxf7 {[%clk 0:01:39]} 21. Qb3+ {[%clk 0:01:56]}  Ke7 {[%clk 0:01:32]} 22. Ng6+ {[%clk 0:01:48]}  Kd7 {[%clk 0:01:27]} 23. Rf7+ {[%clk 0:01:37]}  Kc6 {[%clk 0:01:25]} 24. Qc2+ {[%clk 0:01:27]}  Kb5 {[%clk 0:01:18]} 25. a4+ {[%clk 0:01:26]}  Ka6 {[%clk 0:00:28]} 26. Qd3+ {[%clk 0:01:25]} 1-0


[Site "https://www.chess.com"]

[Event "Titled Tuesday Blitz August 17 2021"]
[White "Ivanov, Oleg"]
[Black "Eynullayev, Altay"]
[WhiteFideId "4103114"]
[BlackFideId "13413562"]
[WhiteElo "2701"]
[BlackElo "2079"]
[Result "1-0"]
[Round "01"]
[TimeControl "180+1"]
[Date "2021.08.17"]
[WhiteClock "0:00:06"]
[BlackClock "0:00:03"]

1. e4 {[%clk 0:02:49]}  c5 {[%clk 0:02:59]} 2. Nf3 {[%clk 0:02:42]}  e6 {[%clk 0:03:00]} 3. g3 {[%clk 0:02:40]}  Nc6 {[%clk 0:02:58]} 4. Bg2 {[%clk 0:02:39]}  d6 {[%clk 0:02:58]} 5. d4 {[%clk 0:02:32]}  cxd4 {[%clk 0:02:58]} 6. Nxd4 {[%clk 0:02:32]}  Bd7 {[%clk 0:02:57]} 7. O-O {[%clk 0:02:31]}  Nf6 {[%clk 0:02:57]} 8. c4 {[%clk 0:02:18]}  a6 {[%clk 0:02:53]} 9. b3 {[%clk 0:02:17]}  Be7 {[%clk 0:02:36]} 10. Bb2 {[%clk 0:02:14]}  O-O {[%clk 0:02:37]} 11. Nc3 {[%clk 0:02:13]}  Rb8 {[%clk 0:02:14]} 12. Rc1 {[%clk 0:01:50]}  Nxd4 {[%clk 0:02:09]} 13. Qxd4 {[%clk 0:01:51]}  b5 {[%clk 0:02:09]} 14. cxb5 {[%clk 0:01:36]}  axb5 {[%clk 0:02:08]} 15. e5 {[%clk 0:01:31]}  dxe5 {[%clk 0:01:20]} 16. Qxe5 {[%clk 0:01:32]}  b4 {[%clk 0:01:14]} 17. Ne4 {[%clk 0:01:25]}  Rb5 {[%clk 0:01:14]} 18. Qd4 {[%clk 0:00:50]}  Rd5 {[%clk 0:00:22]} 19. Qa7 {[%clk 0:00:44]}  Nxe4 {[%clk 0:00:16]} 20. Bxe4 {[%clk 0:00:45]}  Rd2 {[%clk 0:00:17]} 21. Be5 {[%clk 0:00:22]}  Bb5 {[%clk 0:00:14]} 22. Rfe1 {[%clk 0:00:20]}  f6 {[%clk 0:00:09]} 23. Bf4 {[%clk 0:00:19]}  Rd7 {[%clk 0:00:06]} 24. Bc7 {[%clk 0:00:07]}  Qe8 {[%clk 0:00:05]} 25. Qb6 {[%clk 0:00:06]}  Rd4 {[%clk 0:00:03]} 26. Qxe6+ {[%clk 0:00:06]} 1-0


[Site "https://www.chess.com"]

[Event "Titled Tuesday Blitz August 17 2021"]
[White "Jaracz, Pawel"]
[Black "Zaksaite, Salomeja"]
[WhiteFideId "1102222"]
[BlackFideId "12801496"]
[WhiteElo "2495"]
[BlackElo "2002"]
[Result "1-0"]
[Round "01"]
[TimeControl "180+1"]
[Date "2021.08.18"]
[WhiteClock "0:00:33"]
[BlackClock "0:00:02"]

1. Nf3 {[%clk 0:02:58]}  Nf6 {[%clk 0:03:00]} 2. c4 {[%clk 0:02:57]}  g6 {[%clk 0:03:00]} 3. g3 {[%clk 0:02:57]}  Bg7 {[%clk 0:02:59]} 4. Bg2 {[%clk 0:02:57]}  O-O {[%clk 0:02:58]} 5. d4 {[%clk 0:02:57]}  d5 {[%clk 0:02:55]} 6. O-O {[%clk 0:02:56]}  dxc4 {[%clk 0:02:53]} 7. Na3 {[%clk 0:02:56]}  Nc6 {[%clk 0:02:50]} 8. Nxc4 {[%clk 0:02:56]}  Be6 {[%clk 0:02:50]} 9. b3 {[%clk 0:02:55]}  Bd5 {[%clk 0:02:49]} 10. e3 {[%clk 0:02:49]}  a5 {[%clk 0:02:45]} 11. a4 {[%clk 0:02:46]}  Nb4 {[%clk 0:02:27]} 12. Ba3 {[%clk 0:02:45]}  c5 {[%clk 0:02:21]} 13. dxc5 {[%clk 0:02:31]}  Ne4 {[%clk 0:02:20]} 14. Nd4 {[%clk 0:02:31]}  Nxc5 {[%clk 0:02:13]} 15. Bxb4 {[%clk 0:02:24]}  axb4 {[%clk 0:02:08]} 16. Rc1 {[%clk 0:01:52]}  Bxg2 {[%clk 0:02:06]} 17. Kxg2 {[%clk 0:01:52]}  Bxd4 {[%clk 0:01:38]} 18. exd4 {[%clk 0:01:49]}  Qd5+ {[%clk 0:01:38]} 19. f3 {[%clk 0:01:36]}  Ne6 {[%clk 0:01:37]} 20. Nb6 {[%clk 0:01:34]}  Qxd4 {[%clk 0:01:20]} 21. Nxa8 {[%clk 0:01:32]}  Rxa8 {[%clk 0:01:15]} 22. Rc4 {[%clk 0:01:31]}  Qe5 {[%clk 0:00:14]} 23. Re1 {[%clk 0:01:26]}  Qb2+ {[%clk 0:00:10]} 24. Re2 {[%clk 0:01:25]}  Qf6 {[%clk 0:00:09]} 25. Rxb4 {[%clk 0:01:17]}  Rd8 {[%clk 0:00:09]} 26. Rd2 {[%clk 0:01:16]}  Rc8 {[%clk 0:00:05]} 27. Rxb7 {[%clk 0:01:01]}  h5 {[%clk 0:00:04]} 28. h4 {[%clk 0:00:59]}  Rc3 {[%clk 0:00:03]} 29. a5 {[%clk 0:00:57]}  g5 {[%clk 0:00:03]} 30. hxg5 {[%clk 0:00:37]}  Qxg5 {[%clk 0:00:02]} 31. Rb4 {[%clk 0:00:33]} 1-0


[Site "https://www.chess.com"]

[Event "Titled Tuesday Blitz August 17 2021"]
[White "Kamsky, Gata"]
[Black "Zakaryan_David"]
[WhiteFideId "2000024"]
[WhiteElo "2644"]
[BlackElo "2454"]
[Result "1-0"]
[Round "01"]
[TimeControl "180+1"]
[Date "2021.08.17"]
[WhiteClock "0:00:19"]
[BlackClock "0:00:48"]

1. d4 {[%clk 0:03:00]}  d5 {[%clk 0:03:00]} 2. Nf3 {[%clk 0:03:00]}  Nf6 {[%clk 0:02:59]} 3. Bf4 {[%clk 0:03:00]}  c5 {[%clk 0:03:00]} 4. e3 {[%clk 0:03:00]}  Nc6 {[%clk 0:02:59]} 5. Nbd2 {[%clk 0:03:00]}  Qb6 {[%clk 0:02:56]} 6. dxc5 {[%clk 0:03:00]}  Qxc5 {[%clk 0:02:57]} 7. a3 {[%clk 0:02:58]}  g6 {[%clk 0:02:51]} 8. c4 {[%clk 0:02:57]}  dxc4 {[%clk 0:02:50]} 9. Bxc4 {[%clk 0:02:52]}  Bg7 {[%clk 0:02:45]} 10. b4 {[%clk 0:02:46]}  Qb6 {[%clk 0:02:39]} 11. Rc1 {[%clk 0:02:40]}  O-O {[%clk 0:02:39]} 12. b5 {[%clk 0:02:37]}  Na5 {[%clk 0:02:38]} 13. Bc7 {[%clk 0:02:37]}  Nxc4 {[%clk 0:02:23]} 14. Bxb6 {[%clk 0:02:36]}  Nxb6 {[%clk 0:02:24]} 15. O-O {[%clk 0:02:34]}  Bd7 {[%clk 0:02:23]} 16. a4 {[%clk 0:02:33]}  Rfd8 {[%clk 0:02:23]} 17. a5 {[%clk 0:02:28]}  Nbd5 {[%clk 0:02:23]} 18. Qb3 {[%clk 0:02:28]}  Be6 {[%clk 0:02:22]} 19. Qa3 {[%clk 0:02:28]}  b6 {[%clk 0:02:16]} 20. a6 {[%clk 0:02:25]}  Rd7 {[%clk 0:01:58]} 21. Nd4 {[%clk 0:02:23]}  Bf5 {[%clk 0:01:56]} 22. Nxf5 {[%clk 0:02:21]}  gxf5 {[%clk 0:01:57]} 23. Nf3 {[%clk 0:02:16]}  Ne4 {[%clk 0:01:56]} 24. Rc2 {[%clk 0:02:13]}  Ndc3 {[%clk 0:01:48]} 25. Rfc1 {[%clk 0:02:10]}  Rad8 {[%clk 0:01:45]} 26. g3 {[%clk 0:02:09]}  Nxb5 {[%clk 0:01:35]} 27. Qb3 {[%clk 0:02:09]}  Nbd6 {[%clk 0:01:32]} 28. Kg2 {[%clk 0:01:59]}  Bf6 {[%clk 0:01:33]} 29. Nd4 {[%clk 0:01:50]}  Bxd4 {[%clk 0:01:31]} 30. exd4 {[%clk 0:01:50]}  Ne8 {[%clk 0:01:19]} 31. Rc8 {[%clk 0:01:49]}  Kg7 {[%clk 0:01:13]} 32. Rxd8 {[%clk 0:01:47]}  Rxd8 {[%clk 0:01:13]} 33. d5 {[%clk 0:01:44]}  N8f6 {[%clk 0:01:08]} 34. Rc7 {[%clk 0:01:42]}  Nc5 {[%clk 0:01:07]} 35. Qb2 {[%clk 0:01:36]}  Nxa6 {[%clk 0:01:01]} 36. Rxe7 {[%clk 0:01:34]}  Rxd5 {[%clk 0:00:59]} 37. Rxa7 {[%clk 0:01:34]}  Nc5 {[%clk 0:00:59]} 38. Qxb6 {[%clk 0:01:33]}  Ncd7 {[%clk 0:00:57]} 39. Qb2 {[%clk 0:01:31]}  Kg6 {[%clk 0:00:56]} 40. Ra6 {[%clk 0:01:29]}  Kg7 {[%clk 0:00:56]} 41. h4 {[%clk 0:01:28]}  h6 {[%clk 0:00:55]} 42. Qa1 {[%clk 0:01:24]}  Kg6 {[%clk 0:00:53]} 43. Ra5 {[%clk 0:01:24]}  Rxa5 {[%clk 0:00:48]} 44. Qxa5 {[%clk 0:01:24]}  Ng4 {[%clk 0:00:48]} 45. Qa7 {[%clk 0:01:22]}  Ngf6 {[%clk 0:00:48]} 46. Qc7 {[%clk 0:01:19]}  Nf8 {[%clk 0:00:48]} 47. Qd6 {[%clk 0:01:17]}  Ne6 {[%clk 0:00:48]} 48. Qd3 {[%clk 0:01:16]}  Ne4 {[%clk 0:00:48]} 49. f3 {[%clk 0:01:15]}  N4c5 {[%clk 0:00:48]} 50. Qc2 {[%clk 0:01:14]}  Kf6 {[%clk 0:00:48]} 51. Qc3+ {[%clk 0:01:14]}  Kg6 {[%clk 0:00:48]} 52. Qh8 {[%clk 0:01:12]}  Nd7 {[%clk 0:00:45]} 53. Qg8+ {[%clk 0:01:11]}  Kf6 {[%clk 0:00:46]} 54. Qh7 {[%clk 0:01:11]}  f4 {[%clk 0:00:32]} 55. Qxh6+ {[%clk 0:01:10]}  Ke5 {[%clk 0:00:33]} 56. g4 {[%clk 0:01:09]}  Nb6 {[%clk 0:00:31]} 57. Qh8+ {[%clk 0:01:09]}  f6 {[%clk 0:00:31]} 58. Qb8+ {[%clk 0:01:07]}  Kd5 {[%clk 0:00:32]} 59. Qxb6 {[%clk 0:01:06]}  Nd4 {[%clk 0:00:32]} 60. Qxf6 {[%clk 0:01:05]}  Nc2 {[%clk 0:00:32]} 61. Qxf4 {[%clk 0:01:04]}  Nd4 {[%clk 0:00:32]} 62. Qe4+ {[%clk 0:01:04]}  Kd6 {[%clk 0:00:32]} 63. Qxd4+ {[%clk 0:01:03]}  Ke6 {[%clk 0:00:33]} 64. f4 {[%clk 0:01:02]}  Kf7 {[%clk 0:00:33]} 65. f5 {[%clk 0:01:03]}  Kg8 {[%clk 0:00:34]} 66. g5 {[%clk 0:01:03]}  Kh7 {[%clk 0:00:35]} 67. h5 {[%clk 0:01:03]}  Kg8 {[%clk 0:00:35]} 68. g6 {[%clk 0:01:03]}  Kf8 {[%clk 0:00:36]} 69. h6 {[%clk 0:01:04]}  Ke7 {[%clk 0:00:36]} 70. h7 {[%clk 0:01:03]}  Ke8 {[%clk 0:00:36]} 71. h8=N {[%clk 0:01:02]}  Ke7 {[%clk 0:00:37]} 72. g7 {[%clk 0:01:02]}  Ke8 {[%clk 0:00:38]} 73. Kg3 {[%clk 0:01:01]}  Ke7 {[%clk 0:00:39]} 74. f6+ {[%clk 0:01:01]}  Ke8 {[%clk 0:00:40]} 75. f7+ {[%clk 0:01:01]}  Ke7 {[%clk 0:00:41]} 76. g8=N+ {[%clk 0:01:00]}  Ke6 {[%clk 0:00:42]} 77. f8=N+ {[%clk 0:00:59]}  Kf5 {[%clk 0:00:43]} 78. Ne7+ {[%clk 0:00:59]}  Kg5 {[%clk 0:00:43]} 79. Nf7+ {[%clk 0:00:57]}  Kh5 {[%clk 0:00:42]} 80. Kf4 {[%clk 0:00:47]}  Kh4 {[%clk 0:00:41]} 81. Ne6 {[%clk 0:00:44]}  Kh3 {[%clk 0:00:42]} 82. Ng7 {[%clk 0:00:42]}  Kh4 {[%clk 0:00:43]} 83. Ng6+ {[%clk 0:00:41]}  Kh3 {[%clk 0:00:44]} 84. Ng5+ {[%clk 0:00:41]}  Kg2 {[%clk 0:00:45]} 85. Qd2+ {[%clk 0:00:37]}  Kh1 {[%clk 0:00:46]} 86. Nh5 {[%clk 0:00:36]}  Kg1 {[%clk 0:00:47]} 87. Nh4 {[%clk 0:00:36]}  Kf1 {[%clk 0:00:48]} 88. Ng3+ {[%clk 0:00:34]}  Kg1 {[%clk 0:00:48]} 89. Ngf3# {[%clk 0:00:19]} 1-0


[Site "https://www.chess.com"]

[Event "Titled Tuesday Blitz August 17 2021"]
[White "Karttunen, Mika"]
[Black "Krishnakumar, Sriram"]
[WhiteFideId "502081"]
[BlackFideId "30915856"]
[WhiteElo "2343"]
[BlackElo "2338"]
[Result "1-0"]
[Round "01"]
[TimeControl "180+1"]
[Date "2021.08.18"]
[WhiteClock "0:00:27"]
[BlackClock "0:01:17"]

1. d4 {[%clk 0:02:59]}  d5 {[%clk 0:02:59]} 2. c4 {[%clk 0:02:59]}  c6 {[%clk 0:02:59]} 3. Nc3 {[%clk 0:02:58]}  Nf6 {[%clk 0:03:00]} 4. Bf4 {[%clk 0:02:57]}  e6 {[%clk 0:02:57]} 5. e3 {[%clk 0:02:55]}  Bd6 {[%clk 0:02:57]} 6. Bxd6 {[%clk 0:02:54]}  Qxd6 {[%clk 0:02:58]} 7. Nf3 {[%clk 0:02:54]}  O-O {[%clk 0:02:57]} 8. Ne5 {[%clk 0:02:49]}  Nbd7 {[%clk 0:02:55]} 9. f4 {[%clk 0:02:49]}  Ne4 {[%clk 0:02:52]} 10. Nxe4 {[%clk 0:02:47]}  dxe4 {[%clk 0:02:53]} 11. c5 {[%clk 0:02:40]}  Qc7 {[%clk 0:02:46]} 12. Nc4 {[%clk 0:02:05]}  Nf6 {[%clk 0:02:41]} 13. Be2 {[%clk 0:02:01]}  Nd5 {[%clk 0:02:40]} 14. Qd2 {[%clk 0:01:58]}  b6 {[%clk 0:02:38]} 15. Nd6 {[%clk 0:01:54]}  f5 {[%clk 0:02:30]} 16. O-O {[%clk 0:01:53]}  Bd7 {[%clk 0:02:25]} 17. Rfc1 {[%clk 0:01:36]}  b5 {[%clk 0:02:23]} 18. Kh1 {[%clk 0:01:23]}  Be8 {[%clk 0:02:17]} 19. Rg1 {[%clk 0:01:21]}  a5 {[%clk 0:02:14]} 20. g4 {[%clk 0:01:20]}  Bg6 {[%clk 0:02:11]} 21. Rg3 {[%clk 0:01:18]}  Nf6 {[%clk 0:02:03]} 22. Rag1 {[%clk 0:01:13]}  Rad8 {[%clk 0:01:54]} 23. gxf5 {[%clk 0:01:00]}  exf5 {[%clk 0:01:55]} 24. h4 {[%clk 0:00:44]}  a4 {[%clk 0:01:45]} 25. h5 {[%clk 0:00:35]}  Nxh5 {[%clk 0:01:45]} 26. Bxh5 {[%clk 0:00:34]}  Bxh5 {[%clk 0:01:46]} 27. Rxg7+ {[%clk 0:00:34]}  Qxg7 {[%clk 0:01:47]} 28. Rxg7+ {[%clk 0:00:35]}  Kxg7 {[%clk 0:01:48]} 29. Qg2+ {[%clk 0:00:33]}  Bg6 {[%clk 0:01:47]} 30. Qg5 {[%clk 0:00:32]}  Rd7 {[%clk 0:01:45]} 31. Kg1 {[%clk 0:00:32]}  Rg8 {[%clk 0:01:45]} 32. Kf2 {[%clk 0:00:32]}  h6 {[%clk 0:01:40]} 33. Nxf5+ {[%clk 0:00:31]}  Kf8 {[%clk 0:01:34]} 34. Nxh6 {[%clk 0:00:31]}  Rgg7 {[%clk 0:01:32]} 35. Qf6+ {[%clk 0:00:31]}  Ke8 {[%clk 0:01:32]} 36. Qxc6 {[%clk 0:00:31]}  Bh5 {[%clk 0:01:31]} 37. Nf5 {[%clk 0:00:27]}  Rh7 {[%clk 0:01:25]} 38. Qc8+ {[%clk 0:00:27]}  Rd8 {[%clk 0:01:22]} 39. Qe6+ {[%clk 0:00:27]}  Kf8 {[%clk 0:01:22]} 40. Qf6+ {[%clk 0:00:26]}  Ke8 {[%clk 0:01:20]} 41. c6 {[%clk 0:00:26]}  Bf3 {[%clk 0:01:17]} 42. Ng7+ {[%clk 0:00:26]}  Rxg7 {[%clk 0:01:17]} 43. Qxg7 {[%clk 0:00:26]}  Rc8 {[%clk 0:01:17]} 44. d5 {[%clk 0:00:27]}  Rd8 {[%clk 0:01:16]} 45. c7 {[%clk 0:00:27]}  Rc8 {[%clk 0:01:17]} 46. d6 {[%clk 0:00:27]}  Bg4 {[%clk 0:01:17]} 47. Qe7# {[%clk 0:00:27]} 1-0


[Site "https://www.chess.com"]

[Event "Titled Tuesday Blitz August 17 2021"]
[White "Khodzhamkuliev, Bahadur"]
[Black "Kukhmazov, Arsen"]
[WhiteFideId "24135046"]
[BlackFideId "24108260"]
[WhiteElo "2130"]
[BlackElo "2453"]
[Result "0-1"]
[Round "01"]
[TimeControl "180+1"]
[Date "2021.08.17"]
[WhiteClock "0:00:15"]
[BlackClock "0:00:06"]

1. Nf3 {[%clk 0:03:00]}  d5 {[%clk 0:02:59]} 2. d4 {[%clk 0:02:59]}  Nf6 {[%clk 0:02:59]} 3. c4 {[%clk 0:02:59]}  c6 {[%clk 0:02:59]} 4. cxd5 {[%clk 0:02:59]}  cxd5 {[%clk 0:03:00]} 5. Nc3 {[%clk 0:02:59]}  Nc6 {[%clk 0:03:00]} 6. Bf4 {[%clk 0:03:00]}  e6 {[%clk 0:03:00]} 7. e3 {[%clk 0:03:00]}  Nh5 {[%clk 0:03:01]} 8. Bg3 {[%clk 0:03:00]}  Nxg3 {[%clk 0:02:56]} 9. hxg3 {[%clk 0:03:01]}  Bd6 {[%clk 0:02:54]} 10. Bd3 {[%clk 0:02:59]}  g6 {[%clk 0:02:49]} 11. Rc1 {[%clk 0:02:58]}  Bd7 {[%clk 0:02:49]} 12. Qe2 {[%clk 0:02:45]}  Qe7 {[%clk 0:02:30]} 13. g4 {[%clk 0:02:43]}  Rc8 {[%clk 0:02:19]} 14. g3 {[%clk 0:02:15]}  a6 {[%clk 0:02:09]} 15. Kf1 {[%clk 0:02:15]}  Kf8 {[%clk 0:02:04]} 16. Kg2 {[%clk 0:02:13]}  Kg7 {[%clk 0:02:04]} 17. g5 {[%clk 0:02:06]}  f6 {[%clk 0:02:04]} 18. gxf6+ {[%clk 0:01:53]}  Qxf6 {[%clk 0:02:05]} 19. Nd2 {[%clk 0:01:46]}  Ne7 {[%clk 0:01:57]} 20. f4 {[%clk 0:01:45]}  Nf5 {[%clk 0:01:50]} 21. Bxf5 {[%clk 0:01:35]}  exf5 {[%clk 0:01:45]} 22. Nf3 {[%clk 0:01:34]}  Bc6 {[%clk 0:01:40]} 23. Qd2 {[%clk 0:01:24]}  h5 {[%clk 0:01:31]} 24. Ne2 {[%clk 0:01:16]}  Rce8 {[%clk 0:01:28]} 25. Ne5 {[%clk 0:01:14]}  Bb5 {[%clk 0:01:27]} 26. b3 {[%clk 0:01:02]}  h4 {[%clk 0:01:25]} 27. a4 {[%clk 0:01:00]}  Bxe2 {[%clk 0:01:18]} 28. Qxe2 {[%clk 0:01:01]}  hxg3 {[%clk 0:01:13]} 29. Kxg3 {[%clk 0:01:01]}  Qd8 {[%clk 0:00:55]} 30. Rcg1 {[%clk 0:00:57]}  Bxe5 {[%clk 0:00:47]} 31. dxe5 {[%clk 0:00:53]}  d4 {[%clk 0:00:47]} 32. exd4 {[%clk 0:00:48]}  Qxd4 {[%clk 0:00:47]} 33. Rd1 {[%clk 0:00:46]}  Qc3+ {[%clk 0:00:36]} 34. Rd3 {[%clk 0:00:44]}  Qc6 {[%clk 0:00:29]} 35. Rxh8 {[%clk 0:00:34]}  Rxh8 {[%clk 0:00:30]} 36. Qg2 {[%clk 0:00:34]}  Qb6 {[%clk 0:00:12]} 37. Kf3 {[%clk 0:00:21]}  Rh5 {[%clk 0:00:07]} 38. Rd7+ {[%clk 0:00:20]}  Kh6 {[%clk 0:00:08]} 39. Rd3 {[%clk 0:00:18]}  Qc6+ {[%clk 0:00:06]} 40. Kg3 {[%clk 0:00:17]}  Qc1 {[%clk 0:00:05]} 41. Kf2 {[%clk 0:00:16]}  Qc2+ {[%clk 0:00:05]} 42. Ke3 {[%clk 0:00:16]}  Qxg2 {[%clk 0:00:05]} 43. Kd4 {[%clk 0:00:17]}  Qe4+ {[%clk 0:00:05]} 44. Kc3 {[%clk 0:00:15]}  Qxf4 {[%clk 0:00:06]} 0-1


[Site "https://www.chess.com"]